[Event "*** SCC Grand Prix: Titled Tuesday Blitz"]
[Site "Chess.com"]
[Date "2020.10.13"]
[Round "3"]
[White "Bigfish1995"]
[Black "Rozum_Ivan"]
[Result "1/2-1/2"]
[WhiteElo "3099"]
[BlackElo "2743"]
[TimeControl "180+1"]
[EndTime "10:31:54 PDT"]
[Termination "Game drawn by agreement"]

1. e4 {[%clk 0:03:00]} 1... c6 {[%clk 0:02:59.4]} 2. d4 {[%clk 0:03:00.2]} 2...
d5 {[%clk 0:03:00.3]} 3. f3 {[%clk 0:03:00.8]} 3... g6 {[%clk 0:03:00.1]} 4. Be3
{[%clk 0:03:00.3]} 4... Bg7 {[%clk 0:02:59.6]} 5. Nc3 {[%clk 0:03:00.9]} 5...
Qb6 {[%clk 0:02:58.9]} 6. Na4 {[%clk 0:03:01.1]} 6... Qa5+ {[%clk 0:02:58.6]} 7.
c3 {[%clk 0:03:01.4]} 7... Nd7 {[%clk 0:02:51.9]} 8. b4 {[%clk 0:02:59.9]} 8...
Qc7 {[%clk 0:02:51.9]} 9. e5 {[%clk 0:02:59.4]} 9... f6 {[%clk 0:02:49.8]} 10.
f4 {[%clk 0:02:59.5]} 10... Nh6 {[%clk 0:02:48.5]} 11. Nf3 {[%clk 0:02:59.1]}
11... O-O {[%clk 0:02:48.1]} 12. Be2 {[%clk 0:02:54.9]} 12... a5 {[%clk
0:02:37.8]} 13. a3 {[%clk 0:02:51]} 13... Nb6 {[%clk 0:02:32.8]} 14. Nb2 {[%clk
0:02:31.8]} 14... Bg4 {[%clk 0:02:22.3]} 15. O-O {[%clk 0:02:31]} 15... Kh8
{[%clk 0:02:11.8]} 16. Qd2 {[%clk 0:02:23.9]} 16... axb4 {[%clk 0:01:52.6]} 17.
axb4 {[%clk 0:02:21.5]} 17... Rxa1 {[%clk 0:01:53.5]} 18. Rxa1 {[%clk
0:02:21.1]} 18... Ra8 {[%clk 0:01:54.4]} 19. Rxa8+ {[%clk 0:02:18.3]} 19... Nxa8
{[%clk 0:01:55.3]} 20. h3 {[%clk 0:02:16.6]} 20... Bxf3 {[%clk 0:01:53.1]} 21.
Bxf3 {[%clk 0:02:16.9]} 21... b5 {[%clk 0:01:52.5]} 22. Nd3 {[%clk 0:02:05.5]}
22... Nb6 {[%clk 0:01:50.1]} 23. Qa2 {[%clk 0:02:05.5]} 23... Qb7 {[%clk
0:01:34.2]} 24. Nc5 {[%clk 0:02:00.9]} 24... Qa8 {[%clk 0:01:33]} 25. Qxa8+
{[%clk 0:02:00.9]} 25... Nxa8 {[%clk 0:01:33.9]} 26. Ne6 {[%clk 0:02:01.7]}
26... Nf7 {[%clk 0:01:21.4]} 27. Kf2 {[%clk 0:01:50.6]} 27... Kg8 {[%clk
0:01:20.7]} 28. Ke2 {[%clk 0:01:50.2]} 28... Nb6 {[%clk 0:01:20.3]} 29. Kd3
{[%clk 0:01:50]} 29... Nd7 {[%clk 0:01:20.1]} 30. Kc2 {[%clk 0:01:46.2]} 30...
Nf8 {[%clk 0:01:20.2]} 31. Nc7 {[%clk 0:01:31.1]} 31... f5 {[%clk 0:01:16.9]}
32. c4 {[%clk 0:01:30.9]} 32... bxc4 {[%clk 0:01:04.6]} 33. b5 {[%clk
0:01:29.7]} 33... Nd8 {[%clk 0:00:37.4]} 34. bxc6 {[%clk 0:01:29.3]} 34... e6
{[%clk 0:00:37.1]} 35. Nxd5 {[%clk 0:01:28.3]} 35... Nxc6 {[%clk 0:00:36.1]} 36.
Nf6+ {[%clk 0:01:20.3]} 36... Bxf6 {[%clk 0:00:34.9]} 37. Bxc6 {[%clk
0:01:21.2]} 37... Bd8 {[%clk 0:00:33.1]} 38. Kc3 {[%clk 0:01:21]} 38... Kf7
{[%clk 0:00:32]} 39. Kxc4 {[%clk 0:01:20.7]} 39... Bb6 {[%clk 0:00:32.4]} 40.
Bd2 {[%clk 0:01:19.7]} 40... h6 {[%clk 0:00:30.4]} 41. g4 {[%clk 0:01:18.4]}
41... Bd8 {[%clk 0:00:29.4]} 42. g5 {[%clk 0:00:56.9]} 42... hxg5 {[%clk
0:00:22.1]} 43. fxg5 {[%clk 0:00:57.8]} 43... Be7 {[%clk 0:00:22.4]} 44. h4
{[%clk 0:00:57.1]} 44... Nh7 {[%clk 0:00:22.5]} 45. Kb5 {[%clk 0:00:54.7]} 45...
Nf8 {[%clk 0:00:20.9]} 46. Kb6 {[%clk 0:00:54.1]} 46... Ba3 {[%clk 0:00:20.9]}
47. Kc7 {[%clk 0:00:50.3]} 47... Ke7 {[%clk 0:00:21.4]} 48. Be3 {[%clk
0:00:45.4]} 48... Bb4 {[%clk 0:00:21.3]} 49. Bf2 {[%clk 0:00:44]} 49... Ba3
{[%clk 0:00:20.9]} 50. Kc8 {[%clk 0:00:43.8]} 50... Bb4 {[%clk 0:00:21]} 51. Be3
{[%clk 0:00:43.3]} 51... Bc3 {[%clk 0:00:20.7]} 52. Bb5 {[%clk 0:00:38]} 52...
Be1 {[%clk 0:00:20]} 53. d5 {[%clk 0:00:11.9]} 53... exd5 {[%clk 0:00:18.9]} 54.
Bc5+ {[%clk 0:00:12.5]} 54... Kf7 {[%clk 0:00:19.1]} 55. Bc6 {[%clk 0:00:12.1]}
55... Bxh4 {[%clk 0:00:14.2]} 56. Bxd5+ {[%clk 0:00:12.5]} 56... Ke8 {[%clk
0:00:14.7]} 57. e6 {[%clk 0:00:09.1]} 57... Nxe6 {[%clk 0:00:14.6]} 58. Bxe6
{[%clk 0:00:10]} 58... Bxg5 {[%clk 0:00:15.1]} 59. Bd5 {[%clk 0:00:10.4]} 59...
Be7 {[%clk 0:00:15.1]} 60. Be3 {[%clk 0:00:10.6]} 60... Bf6 {[%clk 0:00:15]} 61.
Kc7 {[%clk 0:00:10.5]} 61... Ke7 {[%clk 0:00:15.2]} 62. Bc5+ {[%clk 0:00:10.6]}
62... Ke8 {[%clk 0:00:14.8]} 63. Kc6 {[%clk 0:00:11.1]} 63... Be7 {[%clk
0:00:14]} 64. Be3 {[%clk 0:00:11.4]} 64... Kf8 {[%clk 0:00:14.2]} 65. Kd7 {[%clk
0:00:11.5]} 65... Bf6 {[%clk 0:00:14.2]} 66. Bh6+ {[%clk 0:00:11.8]} 66... Bg7
{[%clk 0:00:14.6]} 67. Bg5 {[%clk 0:00:12.5]} 67... Be5 {[%clk 0:00:14.8]} 68.
Be7+ {[%clk 0:00:11.1]} 68... Kg7 {[%clk 0:00:14.8]} 69. Ke6 {[%clk 0:00:12]}
69... Bb2 {[%clk 0:00:14.7]} 70. Bc6 {[%clk 0:00:12.5]} 70... Ba1 {[%clk
0:00:14.7]} 71. Bg5 {[%clk 0:00:12.5]} 71... Bb2 {[%clk 0:00:14.8]} 72. Be8
{[%clk 0:00:13.1]} 72... Ba1 {[%clk 0:00:14.8]} 73. Bf4 {[%clk 0:00:13]} 73...
Bb2 {[%clk 0:00:15.1]} 74. Bc6 {[%clk 0:00:13.1]} 74... Ba1 {[%clk 0:00:15.4]}
75. Ke7 {[%clk 0:00:13.3]} 75... Bb2 {[%clk 0:00:15.6]} 76. Bd5 {[%clk
0:00:13.6]} 76... Ba1 {[%clk 0:00:15.8]} 77. Ke6 {[%clk 0:00:13.1]} 77... Bb2
{[%clk 0:00:16]} 78. Bg5 {[%clk 0:00:13.6]} 78... Ba1 {[%clk 0:00:16.2]} 79. Bf3
{[%clk 0:00:13.7]} 79... Bb2 {[%clk 0:00:16.4]} 80. Bd2 {[%clk 0:00:13.9]} 80...
Ba1 {[%clk 0:00:16.6]} 81. Ke7 {[%clk 0:00:14.4]} 81... Bb2 {[%clk 0:00:16.8]}
82. Ke8 {[%clk 0:00:14.8]} 82... Ba1 {[%clk 0:00:17.1]} 83. Bb4 {[%clk
0:00:14.5]} 83... Bb2 {[%clk 0:00:17.2]} 84. Bf8+ {[%clk 0:00:14.3]} 84... Kh8
{[%clk 0:00:17.3]} 85. Kf7 {[%clk 0:00:14.3]} 85... Ba1 {[%clk 0:00:17.4]} 86.
Kxg6 {[%clk 0:00:14.3]} 86... Bb2 {[%clk 0:00:17.7]} 87. Bd5 {[%clk 0:00:14.5]}
87... Ba1 {[%clk 0:00:17.9]} 88. Kxf5 {[%clk 0:00:14.7]} 88... Bb2 {[%clk
0:00:18.2]} 89. Kg6 {[%clk 0:00:15.1]} 89... Ba1 {[%clk 0:00:18.5]} 90. Be7
{[%clk 0:00:15.3]} 90... Bb2 {[%clk 0:00:18.8]} 91. Bg5 {[%clk 0:00:15.9]} 91...
Ba1 {[%clk 0:00:19]} 92. Bc1 {[%clk 0:00:15.9]} 92... Bc3 {[%clk 0:00:19]} 93.
Bf7 {[%clk 0:00:16]} 93... Ba1 {[%clk 0:00:19]} 94. Bd2 {[%clk 0:00:16.1]} 94...
Bb2 {[%clk 0:00:19.1]} 95. Bg5 {[%clk 0:00:15.8]} 95... Ba1 {[%clk 0:00:19.1]}
96. Ba2 {[%clk 0:00:16]} 96... Bb2 {[%clk 0:00:19.1]} 97. Bd8 {[%clk 0:00:16.1]}
97... Ba1 {[%clk 0:00:19.3]} 98. Bb6 {[%clk 0:00:16.3]} 98... Bb2 {[%clk
0:00:19.5]} 99. Bb1 {[%clk 0:00:16.1]} 99... Ba1 {[%clk 0:00:19.6]} 100. Kf7
{[%clk 0:00:16.7]} 100... Bb2 {[%clk 0:00:19.8]} 101. Be3 {[%clk 0:00:17.3]}
101... Ba1 {[%clk 0:00:19.8]} 102. Bg5 {[%clk 0:00:17.5]} 102... Bb2 {[%clk
0:00:20]} 103. Bg6 {[%clk 0:00:17]} 103... Ba1 {[%clk 0:00:20.2]} 104. Bf4
{[%clk 0:00:17.7]} 104... Bb2 {[%clk 0:00:20.3]} 105. Bf5 {[%clk 0:00:18.3]}
105... Ba1 {[%clk 0:00:20.5]} 106. Be3 {[%clk 0:00:18.7]} 106... Bb2 {[%clk
0:00:20.8]} 107. Ke6 {[%clk 0:00:17.3]} 107... Ba1 {[%clk 0:00:21]} 108. Kd5
{[%clk 0:00:17.5]} 108... Bb2 {[%clk 0:00:21.4]} 1/2-1/2

[Event "*** SCC Grand Prix: Titled Tuesday Blitz"]
[Site "Chess.com"]
[Date "2020.10.13"]
[Round "4"]
[White "Juanovic"]
[Black "VladaSviridova"]
[Result "0-1"]
[WhiteElo "2105"]
[BlackElo "2250"]
[TimeControl "180+1"]
[EndTime "10:33:59 PDT"]
[Termination "VladaSviridova won by resignation"]

1. e4 {[%clk 0:03:00.9]} 1... e6 {[%clk 0:03:00.2]} 2. d4 {[%clk 0:03:00.6]}
2... d5 {[%clk 0:03:00.9]} 3. Nc3 {[%clk 0:03:00.5]} 3... Bb4 {[%clk 0:03:00.4]}
4. e5 {[%clk 0:03:00.3]} 4... c5 {[%clk 0:03:00.6]} 5. a3 {[%clk 0:03:00.5]}
5... Bxc3+ {[%clk 0:03:01]} 6. bxc3 {[%clk 0:03:01.4]} 6... Ne7 {[%clk
0:03:01.3]} 7. Nf3 {[%clk 0:03:00.6]} 7... b6 {[%clk 0:03:00.3]} 8. Bb5+ {[%clk
0:02:59.9]} 8... Bd7 {[%clk 0:03:00.4]} 9. Bd3 {[%clk 0:03:00]} 9... Ba4 {[%clk
0:02:57.4]} 10. O-O {[%clk 0:02:57.2]} 10... c4 {[%clk 0:02:57.5]} 11. Be2
{[%clk 0:02:57.2]} 11... h6 {[%clk 0:02:56.6]} 12. Bf4 {[%clk 0:02:52.8]} 12...
Kd7 {[%clk 0:02:56.4]} 13. Bg3 {[%clk 0:02:52.7]} 13... Qg8 {[%clk 0:02:56.3]}
14. Qb1 {[%clk 0:02:51.7]} 14... Nbc6 {[%clk 0:02:51.2]} 15. Nd2 {[%clk
0:02:44.2]} 15... Qh7 {[%clk 0:02:49.8]} 16. Rc1 {[%clk 0:02:42.9]} 16... g5
{[%clk 0:02:45.9]} 17. Bh5 {[%clk 0:02:38.1]} 17... Rag8 {[%clk 0:02:24.4]} 18.
Qb4 {[%clk 0:02:37.2]} 18... Nxb4 {[%clk 0:02:23.4]} 0-1

[Event "*** SCC Grand Prix: Titled Tuesday Blitz"]
[Site "Chess.com"]
[Date "2020.10.13"]
[Round "4"]
[White "WiktoriaPOL"]
[Black "tteshan"]
[Result "0-1"]
[WhiteElo "2062"]
[BlackElo "2378"]
[TimeControl "180+1"]
[EndTime "10:34:46 PDT"]
[Termination "tteshan won by checkmate"]

1. c4 {[%clk 0:03:00.9]} 1... c5 {[%clk 0:02:59.9]} 2. Nf3 {[%clk 0:03:00]} 2...
Nc6 {[%clk 0:03:00.1]} 3. Nc3 {[%clk 0:02:59.4]} 3... g6 {[%clk 0:03:00.6]} 4.
e3 {[%clk 0:02:59.3]} 4... Bg7 {[%clk 0:03:01.1]} 5. d4 {[%clk 0:02:59.5]} 5...
cxd4 {[%clk 0:02:59.5]} 6. exd4 {[%clk 0:03:00.4]} 6... d6 {[%clk 0:02:59.1]} 7.
d5 {[%clk 0:02:59.8]} 7... Ne5 {[%clk 0:02:55.9]} 8. Nxe5 {[%clk 0:02:58.7]}
8... Bxe5 {[%clk 0:02:56.5]} 9. Be3 {[%clk 0:02:58.6]} 9... Bg7 {[%clk
0:02:41.7]} 10. Qd2 {[%clk 0:02:58.2]} 10... Nf6 {[%clk 0:02:40.1]} 11. Bd3
{[%clk 0:02:56.7]} 11... O-O {[%clk 0:02:39.6]} 12. O-O-O {[%clk 0:02:54]} 12...
Ng4 {[%clk 0:02:24.4]} 13. Bf4 {[%clk 0:02:50.8]} 13... Qa5 {[%clk 0:02:08.7]}
14. f3 {[%clk 0:02:41.7]} 14... Ne5 {[%clk 0:02:01.6]} 15. Be2 {[%clk
0:02:38.6]} 15... Bd7 {[%clk 0:01:56]} 16. h4 {[%clk 0:02:37.1]} 16... Rfc8
{[%clk 0:01:54.8]} 17. b3 {[%clk 0:02:35.8]} 17... Nxc4 {[%clk 0:01:52]} 18.
Bxc4 {[%clk 0:02:34]} 18... Bxc3 {[%clk 0:01:52]} 19. Qd3 {[%clk 0:02:32.3]}
19... Qa3+ {[%clk 0:01:50.4]} 20. Kc2 {[%clk 0:02:28.8]} 20... Qb2# {[%clk
0:01:49.4]} 0-1

[Event "*** SCC Grand Prix: Titled Tuesday Blitz"]
[Site "Chess.com"]
[Date "2020.10.13"]
[Round "4"]
[White "Sven_Tica"]
[Black "Azatic"]
[Result "1-0"]
[WhiteElo "2645"]
[BlackElo "2490"]
[TimeControl "180+1"]
[EndTime "10:34:49 PDT"]
[Termination "Sven_Tica won by resignation"]

1. d4 {[%clk 0:03:00.9]} 1... Nf6 {[%clk 0:03:00]} 2. c4 {[%clk 0:03:01.8]} 2...
g6 {[%clk 0:03:00.3]} 3. Nc3 {[%clk 0:03:01.7]} 3... Bg7 {[%clk 0:03:01]} 4. Bf4
{[%clk 0:03:02.4]} 4... O-O {[%clk 0:03:01.9]} 5. e3 {[%clk 0:03:03]} 5... c5
{[%clk 0:03:01.6]} 6. d5 {[%clk 0:03:02.3]} 6... d6 {[%clk 0:03:00.2]} 7. Nf3
{[%clk 0:02:57.2]} 7... Na6 {[%clk 0:02:55.3]} 8. h3 {[%clk 0:02:55.9]} 8... Nc7
{[%clk 0:02:55.6]} 9. Bd3 {[%clk 0:02:53.9]} 9... b5 {[%clk 0:02:52.3]} 10. O-O
{[%clk 0:02:45.2]} 10... bxc4 {[%clk 0:02:49.5]} 11. Bxc4 {[%clk 0:02:46.1]}
11... Rb8 {[%clk 0:02:46.8]} 12. b3 {[%clk 0:02:44.1]} 12... Nh5 {[%clk
0:02:26.4]} 13. Rc1 {[%clk 0:02:40.9]} 13... Nxf4 {[%clk 0:02:26.6]} 14. exf4
{[%clk 0:02:41.8]} 14... Ba6 {[%clk 0:02:27]} 15. Qe2 {[%clk 0:02:37.4]} 15...
Bxc4 {[%clk 0:02:24.1]} 16. Qxc4 {[%clk 0:02:38.3]} 16... Rb4 {[%clk 0:02:24]}
17. Qe2 {[%clk 0:02:35.1]} 17... Rxf4 {[%clk 0:02:22.7]} 18. Rfe1 {[%clk
0:02:35.7]} 18... Re8 {[%clk 0:02:16.2]} 19. a3 {[%clk 0:02:31.9]} 19... Bxc3
{[%clk 0:02:08.8]} 20. Rxc3 {[%clk 0:02:31.5]} 20... Nxd5 {[%clk 0:02:09.2]} 21.
Rd3 {[%clk 0:02:30.5]} 21... e6 {[%clk 0:02:09.2]} 22. Rxd5 {[%clk 0:02:30.3]}
22... Rxf3 {[%clk 0:01:55.3]} 23. gxf3 {[%clk 0:02:28.1]} 1-0

[Event "*** SCC Grand Prix: Titled Tuesday Blitz"]
[Site "Chess.com"]
[Date "2020.10.13"]
[Round "4"]
[White "GOGIEFF"]
[Black "TorFredrikKaasen"]
[Result "1-0"]
[WhiteElo "2882"]
[BlackElo "2718"]
[TimeControl "180+1"]
[EndTime "10:35:17 PDT"]
[Termination "GOGIEFF won by resignation"]

1. d4 {[%clk 0:03:00.9]} 1... Nf6 {[%clk 0:03:00.3]} 2. c4 {[%clk 0:03:01]} 2...
g6 {[%clk 0:03:00.9]} 3. Nc3 {[%clk 0:03:00.9]} 3... Bg7 {[%clk 0:03:01.2]} 4.
e4 {[%clk 0:03:00.6]} 4... d6 {[%clk 0:03:01.8]} 5. Be2 {[%clk 0:03:00.6]} 5...
O-O {[%clk 0:03:02.1]} 6. Bg5 {[%clk 0:03:01.2]} 6... c5 {[%clk 0:02:58.7]} 7.
d5 {[%clk 0:03:01]} 7... e6 {[%clk 0:02:59.1]} 8. Nf3 {[%clk 0:02:56.1]} 8...
exd5 {[%clk 0:02:59.3]} 9. cxd5 {[%clk 0:02:56.2]} 9... h6 {[%clk 0:02:50.8]}
10. Be3 {[%clk 0:02:55.9]} 10... Ng4 {[%clk 0:02:45.9]} 11. Bf4 {[%clk
0:02:55.8]} 11... f5 {[%clk 0:02:42.2]} 12. exf5 {[%clk 0:02:56]} 12... Bxf5
{[%clk 0:02:39.6]} 13. O-O {[%clk 0:02:56]} 13... g5 {[%clk 0:02:29.4]} 14. Bg3
{[%clk 0:02:55.7]} 14... a6 {[%clk 0:02:29.4]} 15. h4 {[%clk 0:02:40.6]} 15...
b5 {[%clk 0:02:16.8]} 16. hxg5 {[%clk 0:02:40.6]} 16... hxg5 {[%clk 0:02:17.7]}
17. Bd3 {[%clk 0:02:41.1]} 17... Nh6 {[%clk 0:02:10]} 18. Ne4 {[%clk 0:02:37.7]}
18... Nf7 {[%clk 0:01:48.9]} 19. Nxc5 {[%clk 0:02:30.1]} 19... Bxd3 {[%clk
0:01:41.2]} 20. Ne6 {[%clk 0:02:30]} 1-0

[Event "*** SCC Grand Prix: Titled Tuesday Blitz"]
[Site "Chess.com"]
[Date "2020.10.13"]
[Round "4"]
[White "ErikRonka"]
[Black "queen_iryna"]
[Result "0-1"]
[WhiteElo "2427"]
[BlackElo "2301"]
[TimeControl "180+1"]
[EndTime "10:35:37 PDT"]
[Termination "queen_iryna won by resignation"]

1. d4 {[%clk 0:03:00.9]} 1... d6 {[%clk 0:03:00.1]} 2. e4 {[%clk 0:03:00.4]}
2... Nf6 {[%clk 0:02:58.4]} 3. Nc3 {[%clk 0:03:00.7]} 3... e5 {[%clk 0:02:58.3]}
4. dxe5 {[%clk 0:03:00.6]} 4... dxe5 {[%clk 0:02:59.2]} 5. Qxd8+ {[%clk
0:03:01]} 5... Kxd8 {[%clk 0:03:00.1]} 6. Bg5 {[%clk 0:03:01.3]} 6... Be6 {[%clk
0:02:59.1]} 7. O-O-O+ {[%clk 0:03:00.2]} 7... Nd7 {[%clk 0:02:58.6]} 8. f4
{[%clk 0:03:00.4]} 8... exf4 {[%clk 0:02:58.1]} 9. Nf3 {[%clk 0:03:00.1]} 9...
Kc8 {[%clk 0:02:55.9]} 10. Bxf4 {[%clk 0:02:57.6]} 10... c6 {[%clk 0:02:43.2]}
11. h3 {[%clk 0:02:52.7]} 11... Bb4 {[%clk 0:02:42.8]} 12. Bd2 {[%clk
0:02:40.7]} 12... Re8 {[%clk 0:02:36.3]} 13. Bd3 {[%clk 0:02:38.2]} 13... Nc5
{[%clk 0:02:30.7]} 14. Rhe1 {[%clk 0:02:31.2]} 14... a5 {[%clk 0:02:03.2]} 15.
a3 {[%clk 0:02:29.6]} 15... Nxd3+ {[%clk 0:02:01.1]} 16. cxd3 {[%clk 0:02:29.2]}
16... Bf8 {[%clk 0:02:00.8]} 17. Rf1 {[%clk 0:02:12.7]} 17... b5 {[%clk
0:01:57.3]} 18. d4 {[%clk 0:02:07.5]} 18... b4 {[%clk 0:01:50.8]} 19. Na4 {[%clk
0:02:06.8]} 19... Bb3 {[%clk 0:01:49.6]} 20. Nb6+ {[%clk 0:02:05.8]} 20... Kb7
{[%clk 0:01:49.2]} 21. Nxa8 {[%clk 0:02:04.7]} 21... Bxd1 {[%clk 0:01:47.8]} 22.
Rxd1 {[%clk 0:02:01.9]} 22... bxa3 {[%clk 0:01:41.5]} 23. Bxa5 {[%clk
0:01:58.3]} 23... Rxa8 {[%clk 0:01:40.9]} 0-1

[Event "*** SCC Grand Prix: Titled Tuesday Blitz"]
[Site "Chess.com"]
[Date "2020.10.13"]
[Round "4"]
[White "DonBroca"]
[Black "Forantes"]
[Result "0-1"]
[WhiteElo "2198"]
[BlackElo "2428"]
[TimeControl "180+1"]
[EndTime "10:35:40 PDT"]
[Termination "Forantes won by resignation"]

1. e4 {[%clk 0:03:00.9]} 1... c5 {[%clk 0:02:59.5]} 2. Nf3 {[%clk 0:02:48.9]}
2... Nc6 {[%clk 0:02:57.9]} 3. d4 {[%clk 0:02:46.1]} 3... cxd4 {[%clk
0:02:51.4]} 4. Nxd4 {[%clk 0:02:47]} 4... e5 {[%clk 0:02:51.3]} 5. Nb5 {[%clk
0:02:46.2]} 5... a6 {[%clk 0:02:51.7]} 6. Nd6+ {[%clk 0:02:46]} 6... Bxd6 {[%clk
0:02:52.4]} 7. Qxd6 {[%clk 0:02:46.2]} 7... Qf6 {[%clk 0:02:53.3]} 8. Qd1 {[%clk
0:02:46.2]} 8... Qg6 {[%clk 0:02:51.4]} 9. Nc3 {[%clk 0:02:40.8]} 9... d5 {[%clk
0:02:51.1]} 10. exd5 {[%clk 0:02:25.4]} 10... Nd4 {[%clk 0:02:50]} 11. Bd3
{[%clk 0:02:16.7]} 11... Qxg2 {[%clk 0:02:49.6]} 12. Rf1 {[%clk 0:02:14.5]}
12... Nf3+ {[%clk 0:02:39.2]} 13. Ke2 {[%clk 0:02:14.4]} 13... Bg4 {[%clk
0:02:39.8]} 14. Be4 {[%clk 0:02:11.7]} 14... Nxh2+ {[%clk 0:02:33.1]} 15. Kd3
{[%clk 0:02:10.2]} 15... Qxf1+ {[%clk 0:02:21.1]} 16. Qxf1 {[%clk 0:02:08.5]}
16... Nxf1 {[%clk 0:02:22]} 17. Bg5 {[%clk 0:01:58.3]} 17... Nh2 {[%clk
0:02:12.3]} 18. Rg1 {[%clk 0:01:55.3]} 18... f5 {[%clk 0:02:11.5]} 19. Bh1
{[%clk 0:01:48.9]} 19... h6 {[%clk 0:02:05.5]} 20. Bh4 {[%clk 0:01:39]} 20... g5
{[%clk 0:02:05]} 21. Bg3 {[%clk 0:01:37.1]} 21... Nf3 {[%clk 0:02:05.4]} 22.
Bxf3 {[%clk 0:01:36.3]} 22... Bxf3 {[%clk 0:02:06.3]} 23. Bxe5 {[%clk
0:01:33.2]} 23... Rh7 {[%clk 0:02:06.1]} 0-1

[Event "*** SCC Grand Prix: Titled Tuesday Blitz"]
[Site "Chess.com"]
[Date "2020.10.13"]
[Round "4"]
[White "Das_Virus_2020"]
[Black "BikingBrian"]
[Result "1-0"]
[WhiteElo "2401"]
[BlackElo "2208"]
[TimeControl "180+1"]
[EndTime "10:35:54 PDT"]
[Termination "Das_Virus_2020 won by resignation"]

1. e4 {[%clk 0:03:00.9]} 1... c5 {[%clk 0:02:59.3]} 2. c3 {[%clk 0:03:00.6]}
2... g6 {[%clk 0:02:59.2]} 3. h4 {[%clk 0:02:59.6]} 3... h5 {[%clk 0:02:55.9]}
4. d4 {[%clk 0:02:58]} 4... cxd4 {[%clk 0:02:55.9]} 5. cxd4 {[%clk 0:02:58.1]}
5... d5 {[%clk 0:02:55.9]} 6. Nc3 {[%clk 0:02:54.3]} 6... dxe4 {[%clk
0:02:52.1]} 7. Bg5 {[%clk 0:02:49.1]} 7... Bg4 {[%clk 0:02:44.8]} 8. Qb3 {[%clk
0:02:45.4]} 8... Qb6 {[%clk 0:02:35.1]} 9. Qxb6 {[%clk 0:02:21.2]} 9... axb6
{[%clk 0:02:36]} 10. Nxe4 {[%clk 0:02:18.3]} 10... Nc6 {[%clk 0:02:30.8]} 11. f3
{[%clk 0:02:16.2]} 11... Nxd4 {[%clk 0:02:26.5]} 12. O-O-O {[%clk 0:01:56.4]}
12... Bg7 {[%clk 0:02:07.3]} 13. fxg4 {[%clk 0:01:54.1]} 13... Rxa2 {[%clk
0:01:59.8]} 14. Kb1 {[%clk 0:01:53.1]} 14... Ra8 {[%clk 0:01:48.2]} 15. Nf3
{[%clk 0:01:46.3]} 15... f6 {[%clk 0:01:41.3]} 16. Nxd4 {[%clk 0:01:40.2]} 16...
fxg5 {[%clk 0:01:41.2]} 17. Ne6 {[%clk 0:01:39.8]} 17... Be5 {[%clk 0:01:37.6]}
18. Bb5+ {[%clk 0:01:33.8]} 18... Kf7 {[%clk 0:01:34.6]} 19. N4xg5+ {[%clk
0:01:33.8]} 19... Kf6 {[%clk 0:01:33]} 20. Rhf1+ {[%clk 0:01:33.8]} 1-0

[Event "*** SCC Grand Prix: Titled Tuesday Blitz"]
[Site "Chess.com"]
[Date "2020.10.13"]
[Round "4"]
[White "AnnaChessLook"]
[Black "Slovak_fighter2000"]
[Result "0-1"]
[WhiteElo "2222"]
[BlackElo "2407"]
[TimeControl "180+1"]
[EndTime "10:36:14 PDT"]
[Termination "Slovak_fighter2000 won by resignation"]

1. d4 {[%clk 0:03:00.9]} 1... Nf6 {[%clk 0:02:59.2]} 2. c4 {[%clk 0:03:00.4]}
2... g6 {[%clk 0:02:56.4]} 3. Nc3 {[%clk 0:02:59.5]} 3... Bg7 {[%clk 0:02:55.7]}
4. e4 {[%clk 0:02:59.6]} 4... d6 {[%clk 0:02:56]} 5. Be2 {[%clk 0:02:59.1]} 5...
Nbd7 {[%clk 0:02:53.1]} 6. Be3 {[%clk 0:02:59.2]} 6... c5 {[%clk 0:02:52.6]} 7.
d5 {[%clk 0:02:57.6]} 7... O-O {[%clk 0:02:46.3]} 8. Nf3 {[%clk 0:02:56.4]} 8...
b5 {[%clk 0:02:42.6]} 9. cxb5 {[%clk 0:02:54.7]} 9... a6 {[%clk 0:02:42.7]} 10.
a4 {[%clk 0:02:47.9]} 10... axb5 {[%clk 0:02:41.4]} 11. Bxb5 {[%clk 0:02:47.7]}
11... Ne8 {[%clk 0:02:33.8]} 12. O-O {[%clk 0:02:40.5]} 12... Nc7 {[%clk
0:02:31.3]} 13. Bc6 {[%clk 0:02:26.1]} 13... Rb8 {[%clk 0:02:20.2]} 14. Qc2
{[%clk 0:02:21.9]} 14... Ba6 {[%clk 0:02:14.6]} 15. Rfe1 {[%clk 0:02:02.9]}
15... f5 {[%clk 0:02:13.4]} 16. exf5 {[%clk 0:01:55.4]} 16... Rxf5 {[%clk
0:02:14.3]} 17. Ng5 {[%clk 0:01:22.2]} 17... Ne5 {[%clk 0:02:08]} 18. Ne6 {[%clk
0:01:16.9]} 18... Nxe6 {[%clk 0:02:06]} 19. dxe6 {[%clk 0:01:17.8]} 19... Nxc6
{[%clk 0:02:05.8]} 20. g4 {[%clk 0:01:03.5]} 20... Rf8 {[%clk 0:02:00.7]} 21.
Rab1 {[%clk 0:00:59.2]} 21... Nd4 {[%clk 0:01:59.5]} 0-1

[Event "*** SCC Grand Prix: Titled Tuesday Blitz"]
[Site "Chess.com"]
[Date "2020.10.13"]
[Round "4"]
[White "szachuspl"]
[Black "Sankalp_Gupta2003"]
[Result "0-1"]
[WhiteElo "2555"]
[BlackElo "2735"]
[TimeControl "180+1"]
[EndTime "10:36:19 PDT"]
[Termination "Sankalp_Gupta2003 won by resignation"]

1. d3 {[%clk 0:03:00.9]} 1... Nf6 {[%clk 0:02:58.9]} 2. g3 {[%clk 0:03:00]} 2...
g6 {[%clk 0:02:50.9]} 3. Bg2 {[%clk 0:02:59.8]} 3... Bg7 {[%clk 0:02:50.5]} 4.
e4 {[%clk 0:02:59.8]} 4... d6 {[%clk 0:02:49.7]} 5. Nf3 {[%clk 0:02:58.6]} 5...
O-O {[%clk 0:02:50.2]} 6. O-O {[%clk 0:02:58.8]} 6... e5 {[%clk 0:02:46.5]} 7.
Nc3 {[%clk 0:02:53.3]} 7... Nc6 {[%clk 0:02:42.7]} 8. h3 {[%clk 0:02:52.7]} 8...
Ne8 {[%clk 0:02:37.1]} 9. Nd5 {[%clk 0:02:43.6]} 9... h6 {[%clk 0:02:35.1]} 10.
c4 {[%clk 0:02:43.6]} 10... Kh7 {[%clk 0:02:34.5]} 11. Nh4 {[%clk 0:02:39.8]}
11... Nd4 {[%clk 0:02:26.4]} 12. Be3 {[%clk 0:02:38.4]} 12... c6 {[%clk
0:02:23.8]} 13. Nc3 {[%clk 0:02:38.6]} 13... f5 {[%clk 0:02:23.7]} 14. exf5
{[%clk 0:02:36.6]} 14... Nxf5 {[%clk 0:02:22.4]} 15. Nxf5 {[%clk 0:02:36.3]}
15... Bxf5 {[%clk 0:02:12.8]} 16. g4 {[%clk 0:02:36.6]} 16... Be6 {[%clk
0:02:11.6]} 17. Rc1 {[%clk 0:02:30.7]} 17... Qh4 {[%clk 0:01:53.6]} 18. Ne4
{[%clk 0:02:23.5]} 18... Rd8 {[%clk 0:01:46.1]} 19. d4 {[%clk 0:02:19.7]} 19...
Nf6 {[%clk 0:01:32]} 20. Ng3 {[%clk 0:02:12.9]} 20... Bxg4 {[%clk 0:01:24]} 21.
hxg4 {[%clk 0:01:56.7]} 21... Nxg4 {[%clk 0:01:24.9]} 22. Re1 {[%clk 0:01:57]}
22... Qh2+ {[%clk 0:01:24.5]} 23. Kf1 {[%clk 0:01:57.3]} 23... Qxg3 {[%clk
0:01:25.3]} 24. Rc3 {[%clk 0:01:39.2]} 24... Rxf2+ {[%clk 0:01:23.4]} 0-1